[Event "*** Titled Tuesday Blitz"]
[Site "Chess.com"]
[Date "2021.02.09"]
[Round "7"]
[White "wannabe2700"]
[Black "francyIM"]
[Result "0-1"]
[WhiteElo "2750"]
[BlackElo "2583"]
[TimeControl "180+1"]
[EndTime "11:20:05 PST"]
[Termination "francyIM won by checkmate"]

1. e4 {[%clk 0:03:00.9]} 1... e5 {[%clk 0:02:56.9]} 2. Nf3 {[%clk 0:03:01]} 2...
Nc6 {[%clk 0:02:53.1]} 3. Bb5 {[%clk 0:03:01.3]} 3... a6 {[%clk 0:02:52.8]} 4.
Ba4 {[%clk 0:03:01.8]} 4... d6 {[%clk 0:02:51.4]} 5. O-O {[%clk 0:02:59.3]} 5...
g6 {[%clk 0:02:50]} 6. c3 {[%clk 0:02:58.8]} 6... Bg7 {[%clk 0:02:48.6]} 7. d4
{[%clk 0:02:58.7]} 7... Bd7 {[%clk 0:02:48.1]} 8. Re1 {[%clk 0:02:57.4]} 8...
Nf6 {[%clk 0:02:36.9]} 9. Nbd2 {[%clk 0:02:55.3]} 9... O-O {[%clk 0:02:32.1]}
10. Nf1 {[%clk 0:02:55.1]} 10... Qe7 {[%clk 0:02:24.4]} 11. Ng3 {[%clk
0:02:51.1]} 11... Rad8 {[%clk 0:02:22.6]} 12. Bd2 {[%clk 0:02:31.2]} 12... b5
{[%clk 0:02:19.1]} 13. Bc2 {[%clk 0:02:26.5]} 13... Bg4 {[%clk 0:02:18.8]} 14.
d5 {[%clk 0:02:16.7]} 14... Na5 {[%clk 0:02:16.4]} 15. b3 {[%clk 0:02:14.1]}
15... c6 {[%clk 0:02:13.5]} 16. c4 {[%clk 0:02:12.7]} 16... Qc7 {[%clk
0:02:12.2]} 17. Bd3 {[%clk 0:01:50.4]} 17... Nb7 {[%clk 0:02:11]} 18. Rc1 {[%clk
0:01:38.4]} 18... Nc5 {[%clk 0:02:09.9]} 19. Bc2 {[%clk 0:01:31.7]} 19... bxc4
{[%clk 0:02:08.4]} 20. bxc4 {[%clk 0:01:31.5]} 20... cxd5 {[%clk 0:02:02.7]} 21.
cxd5 {[%clk 0:01:30.8]} 21... Rb8 {[%clk 0:02:01.5]} 22. h3 {[%clk 0:01:29.7]}
22... Bxf3 {[%clk 0:01:56]} 23. Qxf3 {[%clk 0:01:29.6]} 23... Nfd7 {[%clk
0:01:55.8]} 24. h4 {[%clk 0:01:13.8]} 24... Qd8 {[%clk 0:01:49.1]} 25. h5 {[%clk
0:01:09.8]} 25... Qh4 {[%clk 0:01:40.1]} 26. Kf1 {[%clk 0:00:58.5]} 26... Rb2
{[%clk 0:01:07]} 27. Ke2 {[%clk 0:00:53.7]} 27... Rxa2 {[%clk 0:00:57.7]} 28.
Rh1 {[%clk 0:00:52]} 28... Qf6 {[%clk 0:00:57.5]} 29. Qc3 {[%clk 0:00:46.9]}
29... Rb8 {[%clk 0:00:56.6]} 30. Bb1 {[%clk 0:00:35.5]} 30... Ra4 {[%clk
0:00:54.7]} 31. Bc2 {[%clk 0:00:34.6]} 31... Rab4 {[%clk 0:00:53.1]} 32. Ra1
{[%clk 0:00:30.9]} 32... R4b7 {[%clk 0:00:48.3]} 33. Qe3 {[%clk 0:00:20.3]}
33... Qe7 {[%clk 0:00:41.4]} 34. hxg6 {[%clk 0:00:18]} 34... fxg6 {[%clk
0:00:40.4]} 35. f3 {[%clk 0:00:18]} 35... Qf8 {[%clk 0:00:38.8]} 36. Kf2 {[%clk
0:00:17.7]} 36... Nf6 {[%clk 0:00:34.7]} 37. Kg1 {[%clk 0:00:17.3]} 37... Rb2
{[%clk 0:00:32.1]} 38. Qc3 {[%clk 0:00:17.2]} 38... Qc8 {[%clk 0:00:28]} 39. Bc1
{[%clk 0:00:15.8]} 39... R2b7 {[%clk 0:00:27.1]} 40. Ne2 {[%clk 0:00:15.6]}
40... Rc7 {[%clk 0:00:26.9]} 41. Qd2 {[%clk 0:00:13.7]} 41... Nb3 {[%clk
0:00:23.6]} 42. Bxb3 {[%clk 0:00:13.8]} 42... Rxb3 {[%clk 0:00:24.5]} 43. Qd1
{[%clk 0:00:13.3]} 43... Rc2 {[%clk 0:00:24]} 44. Kh2 {[%clk 0:00:11.6]} 44...
Qc4 {[%clk 0:00:22.2]} 45. Ng3 {[%clk 0:00:11.7]} 45... Rd3 {[%clk 0:00:18.2]}
46. Qf1 {[%clk 0:00:11.2]} 46... h5 {[%clk 0:00:17.5]} 47. Bg5 {[%clk
0:00:11.3]} 47... Nh7 {[%clk 0:00:17.5]} 48. Be7 {[%clk 0:00:10.7]} 48... Bf8
{[%clk 0:00:14.9]} 49. Bxf8 {[%clk 0:00:10.4]} 49... Nxf8 {[%clk 0:00:15.8]} 50.
Rb1 {[%clk 0:00:11.1]} 50... h4 {[%clk 0:00:15]} 51. Ne2 {[%clk 0:00:11.5]}
51... Rdd2 {[%clk 0:00:14.1]} 52. Ng1 {[%clk 0:00:06.2]} 52... Qxf1 {[%clk
0:00:09.9]} 53. Rxf1 {[%clk 0:00:07.1]} 53... Rxg2+ {[%clk 0:00:10.5]} 54. Kh3
{[%clk 0:00:07.8]} 54... g5 {[%clk 0:00:11.2]} 55. Ne2 {[%clk 0:00:06.8]} 55...
Rcxe2 {[%clk 0:00:10.5]} 56. Rfg1 {[%clk 0:00:07.4]} 56... Rxg1 {[%clk
0:00:10.2]} 57. Rxg1 {[%clk 0:00:08.3]} 57... Nh7 {[%clk 0:00:10.8]} 58. Kg4
{[%clk 0:00:08.7]} 58... Kg7 {[%clk 0:00:11]} 59. Kf5 {[%clk 0:00:08.5]} 59...
Kf7 {[%clk 0:00:10.7]} 60. Rb1 {[%clk 0:00:07.8]} 60... Kg7 {[%clk 0:00:10.3]}
61. Rb7+ {[%clk 0:00:08.7]} 61... Kh6 {[%clk 0:00:10.6]} 62. Ke6 {[%clk
0:00:09.3]} 62... h3 {[%clk 0:00:10.7]} 63. Kxd6 {[%clk 0:00:10.2]} 63... h2
{[%clk 0:00:11]} 64. Rb1 {[%clk 0:00:10.8]} 64... g4 {[%clk 0:00:11.4]} 65. Rh1
{[%clk 0:00:11.7]} 65... Ng5 {[%clk 0:00:12]} 66. fxg4 {[%clk 0:00:12]} 66...
Nxe4+ {[%clk 0:00:12.2]} 67. Ke7 {[%clk 0:00:11.8]} 67... Ng3 {[%clk 0:00:13.1]}
68. Rxh2+ {[%clk 0:00:11.7]} 68... Rxh2 {[%clk 0:00:13.5]} 69. d6 {[%clk
0:00:12.2]} 69... Rd2 {[%clk 0:00:14.4]} 70. Kf6 {[%clk 0:00:13.1]} 70... e4
{[%clk 0:00:14.9]} 71. g5+ {[%clk 0:00:13.6]} 71... Kh7 {[%clk 0:00:14.9]} 72.
Ke5 {[%clk 0:00:14.2]} 72... e3 {[%clk 0:00:14.9]} 73. d7 {[%clk 0:00:14.2]}
73... e2 {[%clk 0:00:15]} 74. d8=Q {[%clk 0:00:15.1]} 74... Rxd8 {[%clk
0:00:15]} 75. Kf6 {[%clk 0:00:16]} 75... Kg8 {[%clk 0:00:14.4]} 76. g6 {[%clk
0:00:16.9]} 76... e1=Q {[%clk 0:00:14.8]} 77. g7 {[%clk 0:00:17.8]} 77... Rd6+
{[%clk 0:00:14.3]} 78. Kg5 {[%clk 0:00:18.1]} 78... Qe5+ {[%clk 0:00:13.2]} 79.
Kg4 {[%clk 0:00:19]} 79... Qe4+ {[%clk 0:00:13]} 80. Kh3 {[%clk 0:00:19.9]}
80... Rh6+ {[%clk 0:00:13.1]} 81. Kxg3 {[%clk 0:00:20]} 81... Rg6+ {[%clk
0:00:13.5]} 82. Kf2 {[%clk 0:00:20.9]} 82... Rg2+ {[%clk 0:00:13.3]} 83. Kf1
{[%clk 0:00:21.8]} 83... Qe2# {[%clk 0:00:12.2]} 0-1

[Event "*** Titled Tuesday Blitz"]
[Site "Chess.com"]
[Date "2021.02.09"]
[Round "7"]
[White "SilviusTiberius"]
[Black "PavelChernomordik"]
[Result "1-0"]
[WhiteElo "2509"]
[BlackElo "2378"]
[TimeControl "180+1"]
[EndTime "11:20:05 PST"]
[Termination "SilviusTiberius won by checkmate"]

1. e4 {[%clk 0:03:00.9]} 1... g6 {[%clk 0:03:00.9]} 2. d4 {[%clk 0:02:59.3]}
2... Bg7 {[%clk 0:03:01.1]} 3. Nc3 {[%clk 0:03:00]} 3... d6 {[%clk 0:03:00.6]}
4. Be3 {[%clk 0:03:00.3]} 4... a6 {[%clk 0:03:00.5]} 5. g4 {[%clk 0:03:00.5]}
5... b5 {[%clk 0:02:58.3]} 6. Bg2 {[%clk 0:03:00.4]} 6... Bb7 {[%clk 0:02:57.4]}
7. h4 {[%clk 0:03:01]} 7... h6 {[%clk 0:02:56.1]} 8. Nce2 {[%clk 0:02:54]} 8...
Nf6 {[%clk 0:02:51.5]} 9. Ng3 {[%clk 0:02:54]} 9... Qc8 {[%clk 0:02:44.3]} 10.
g5 {[%clk 0:02:37.8]} 10... Ng4 {[%clk 0:02:27.5]} 11. Bc1 {[%clk 0:02:37.3]}
11... hxg5 {[%clk 0:02:14]} 12. hxg5 {[%clk 0:02:35.7]} 12... Rxh1 {[%clk
0:02:12.7]} 13. Nxh1 {[%clk 0:02:36.3]} 13... c5 {[%clk 0:02:08.3]} 14. Bh3
{[%clk 0:02:31.9]} 14... Bxe4 {[%clk 0:02:02.3]} 15. Bxg4 {[%clk 0:02:19.4]}
15... Qb7 {[%clk 0:01:57.3]} 16. Ng3 {[%clk 0:02:16.3]} 16... Bxd4 {[%clk
0:01:53.7]} 17. Nxe4 {[%clk 0:02:14.6]} 17... Qxe4+ {[%clk 0:01:52.8]} 18. Kf1
{[%clk 0:02:15]} 18... Qb7 {[%clk 0:01:43]} 19. Bf3 {[%clk 0:02:05.6]} 19... Nc6
{[%clk 0:01:42.2]} 20. Ne2 {[%clk 0:02:05.8]} 20... Bg7 {[%clk 0:01:41]} 21. Qd5
{[%clk 0:01:59.1]} 21... Rc8 {[%clk 0:01:40.1]} 22. c3 {[%clk 0:01:57.9]} 22...
Qd7 {[%clk 0:01:38.8]} 23. Bf4 {[%clk 0:01:51.5]} 23... Ne5 {[%clk 0:01:34.3]}
24. Bxe5 {[%clk 0:01:45.1]} 24... Bxe5 {[%clk 0:01:33.4]} 25. Qb7 {[%clk
0:01:44.4]} 25... a5 {[%clk 0:01:09.9]} 26. a4 {[%clk 0:01:30.7]} 26... b4
{[%clk 0:01:08.5]} 27. Rc1 {[%clk 0:01:29.1]} 27... Qxb7 {[%clk 0:01:05.7]} 28.
Bxb7 {[%clk 0:01:28.4]} 28... Rc7 {[%clk 0:01:05.3]} 29. Ba6 {[%clk 0:01:27.9]}
29... bxc3 {[%clk 0:01:02.3]} 30. Nxc3 {[%clk 0:01:26.2]} 30... Bf4 {[%clk
0:01:01.7]} 31. Rd1 {[%clk 0:01:11.5]} 31... Bxg5 {[%clk 0:01:00.1]} 32. Nd5
{[%clk 0:01:12]} 32... Ra7 {[%clk 0:00:58.8]} 33. Bb5+ {[%clk 0:01:10.9]} 33...
Kf8 {[%clk 0:00:58.2]} 34. f4 {[%clk 0:01:07]} 34... Bh6 {[%clk 0:00:57]} 35.
Ke2 {[%clk 0:01:03.5]} 35... e6 {[%clk 0:00:55.9]} 36. Rh1 {[%clk 0:01:04]}
36... Bg7 {[%clk 0:00:53.7]} 37. Nb6 {[%clk 0:00:59]} 37... Bxb2 {[%clk
0:00:50.8]} 38. Nc8 {[%clk 0:00:59.5]} 38... Rc7 {[%clk 0:00:48.2]} 39. Nxd6
{[%clk 0:00:59.6]} 39... Ke7 {[%clk 0:00:43]} 40. Nc4 {[%clk 0:00:59.3]} 40...
Bg7 {[%clk 0:00:42.1]} 41. Nxa5 {[%clk 0:00:57.9]} 41... e5 {[%clk 0:00:37.7]}
42. fxe5 {[%clk 0:00:57.3]} 42... Bxe5 {[%clk 0:00:37.2]} 43. Nc6+ {[%clk
0:00:57.8]} 43... Kf6 {[%clk 0:00:34.9]} 44. Rf1+ {[%clk 0:00:57.1]} 44... Ke6
{[%clk 0:00:33.4]} 45. Bc4+ {[%clk 0:00:57.1]} 45... Kd6 {[%clk 0:00:31.3]} 46.
Nxe5 {[%clk 0:00:56.6]} 46... Kxe5 {[%clk 0:00:30.6]} 47. Rxf7 {[%clk
0:00:56.5]} 47... Rc8 {[%clk 0:00:28.3]} 48. a5 {[%clk 0:00:51]} 48... Kd4
{[%clk 0:00:27.8]} 49. Rf4+ {[%clk 0:00:50]} 49... Kc3 {[%clk 0:00:26.5]} 50. a6
{[%clk 0:00:48.2]} 50... Rc7 {[%clk 0:00:26]} 51. Rg4 {[%clk 0:00:47.2]} 51...
Kb4 {[%clk 0:00:19.8]} 52. Bd5+ {[%clk 0:00:43.6]} 52... Ka5 {[%clk 0:00:19.2]}
53. Rxg6 {[%clk 0:00:42.2]} 53... c4 {[%clk 0:00:16.8]} 54. Kd2 {[%clk
0:00:33.3]} 54... Rd7 {[%clk 0:00:14.3]} 55. Rg5 {[%clk 0:00:16.6]} 55... Kxa6
{[%clk 0:00:13.6]} 56. Kc3 {[%clk 0:00:17.2]} 56... Kb6 {[%clk 0:00:13.4]} 57.
Bxc4 {[%clk 0:00:17.6]} 57... Rh7 {[%clk 0:00:12.6]} 58. Kb4 {[%clk 0:00:17.9]}
58... Rh4 {[%clk 0:00:11.7]} 59. Rg6+ {[%clk 0:00:18.2]} 59... Kc7 {[%clk
0:00:11.7]} 60. Kc5 {[%clk 0:00:18.7]} 60... Rh5+ {[%clk 0:00:11]} 61. Bd5
{[%clk 0:00:19.2]} 61... Kd7 {[%clk 0:00:11.9]} 62. Rg7+ {[%clk 0:00:19.2]}
62... Ke8 {[%clk 0:00:11.6]} 63. Kd6 {[%clk 0:00:19.5]} 63... Rh6+ {[%clk
0:00:10.5]} 64. Be6 {[%clk 0:00:19.4]} 64... Rf6 {[%clk 0:00:09.2]} 65. Ra7
{[%clk 0:00:16.7]} 65... Kf8 {[%clk 0:00:08.2]} 66. Ke5 {[%clk 0:00:17]} 66...
Rf1 {[%clk 0:00:07.1]} 67. Bf5 {[%clk 0:00:15.1]} 67... Ke8 {[%clk 0:00:06]} 68.
Kf6 {[%clk 0:00:14.8]} 68... Re1 {[%clk 0:00:05.3]} 69. Ra8# {[%clk 0:00:09.3]}
1-0

[Event "*** Titled Tuesday Blitz"]
[Site "Chess.com"]
[Date "2021.02.09"]
[Round "7"]
[White "ChampStan"]
[Black "ZivkovicN"]
[Result "0-1"]
[WhiteElo "2227"]
[BlackElo "2461"]
[TimeControl "180+1"]
[EndTime "11:20:10 PST"]
[Termination "ZivkovicN won on time"]

1. d4 {[%clk 0:03:00.9]} 1... Nf6 {[%clk 0:02:59.6]} 2. c4 {[%clk 0:03:01.1]}
2... e6 {[%clk 0:02:59.8]} 3. Nc3 {[%clk 0:03:00.8]} 3... Bb4 {[%clk 0:02:59.4]}
4. Qc2 {[%clk 0:03:00.5]} 4... Nc6 {[%clk 0:02:58.3]} 5. Nf3 {[%clk 0:03:00.1]}
5... h6 {[%clk 0:02:55.7]} 6. e4 {[%clk 0:02:52]} 6... Bxc3+ {[%clk 0:02:49.6]}
7. bxc3 {[%clk 0:02:51.1]} 7... d6 {[%clk 0:02:49.6]} 8. h3 {[%clk 0:02:43.4]}
8... e5 {[%clk 0:02:49.1]} 9. Be3 {[%clk 0:02:40.5]} 9... b6 {[%clk 0:02:46.5]}
10. g4 {[%clk 0:02:35]} 10... Bb7 {[%clk 0:02:32.5]} 11. Nd2 {[%clk 0:02:07.6]}
11... Nd7 {[%clk 0:02:18.7]} 12. f3 {[%clk 0:02:04.4]} 12... Qe7 {[%clk
0:02:14.8]} 13. Be2 {[%clk 0:01:52.1]} 13... h5 {[%clk 0:02:10.2]} 14. g5 {[%clk
0:01:35.2]} 14... h4 {[%clk 0:02:05.2]} 15. Qa4 {[%clk 0:01:25.9]} 15... Nd8
{[%clk 0:01:00]} 16. Rg1 {[%clk 0:01:00]} 16... Bc6 {[%clk 0:00:57.2]} 17. Qa3
{[%clk 0:00:54.6]} 17... Bb7 {[%clk 0:00:51]} 18. Rb1 {[%clk 0:00:53.5]} 18...
Ne6 {[%clk 0:00:43.9]} 19. Rg4 {[%clk 0:00:45.7]} 19... c5 {[%clk 0:00:37.3]}
20. Nb3 {[%clk 0:00:26.2]} 20... Kd8 {[%clk 0:00:11.7]} 21. Na5 {[%clk
0:00:22.7]} 21... Kc8 {[%clk 0:00:09.4]} 22. Nxb7 {[%clk 0:00:20.8]} 22... Kxb7
{[%clk 0:00:10.3]} 23. Qa4 {[%clk 0:00:20.2]} 23... Rac8 {[%clk 0:00:09.6]} 24.
Rd1 {[%clk 0:00:18.9]} 24... Ka8 {[%clk 0:00:07.7]} 25. d5 {[%clk 0:00:15.3]}
25... Nef8 {[%clk 0:00:06]} 26. Qb5 {[%clk 0:00:13.4]} 26... Ng6 {[%clk
0:00:06.2]} 27. a4 {[%clk 0:00:13.2]} 27... Rc7 {[%clk 0:00:06.5]} 28. Ra1
{[%clk 0:00:12.5]} 28... Rb8 {[%clk 0:00:06.8]} 29. Kf2 {[%clk 0:00:13]} 29...
Rcb7 {[%clk 0:00:06.6]} 30. Qc6 {[%clk 0:00:12.4]} 30... Qf8 {[%clk 0:00:05.3]}
31. a5 {[%clk 0:00:12.3]} 31... Rc8 {[%clk 0:00:05.4]} 32. Qb5 {[%clk 0:00:10]}
32... bxa5 {[%clk 0:00:04.1]} 33. Qxa5 {[%clk 0:00:10.3]} 33... Rcb8 {[%clk
0:00:04.1]} 34. Rgg1 {[%clk 0:00:09.8]} 34... Nb6 {[%clk 0:00:04.1]} 35. Rgb1
{[%clk 0:00:09.2]} 35... Qe7 {[%clk 0:00:04.6]} 36. Qa6 {[%clk 0:00:09.4]} 36...
Rd8 {[%clk 0:00:04]} 37. Qb5 {[%clk 0:00:08.4]} 37... Kb8 {[%clk 0:00:04.4]} 38.
Qc6 {[%clk 0:00:08.6]} 38... Rc8 {[%clk 0:00:04.7]} 39. Qb5 {[%clk 0:00:08.4]}
39... Rcc7 {[%clk 0:00:04.9]} 40. Qa6 {[%clk 0:00:08.3]} 40... Nf4 {[%clk
0:00:04.5]} 41. Bxf4 {[%clk 0:00:07.2]} 41... exf4 {[%clk 0:00:05.4]} 42. Bf1
{[%clk 0:00:07.1]} 42... Qxg5 {[%clk 0:00:05.5]} 43. Bg2 {[%clk 0:00:07.7]}
43... Qe5 {[%clk 0:00:05.8]} 44. Rb3 {[%clk 0:00:07.2]} 44... f5 {[%clk
0:00:05.9]} 45. Rab1 {[%clk 0:00:06.4]} 45... fxe4 {[%clk 0:00:06.1]} 46. fxe4
{[%clk 0:00:07.3]} 46... f3 {[%clk 0:00:05.2]} 47. Bxf3 {[%clk 0:00:07.4]} 47...
Qg3+ {[%clk 0:00:06.1]} 48. Ke3 {[%clk 0:00:07.5]} 48... Qg5+ {[%clk 0:00:06]}
49. Ke2 {[%clk 0:00:06.8]} 49... Qg3 {[%clk 0:00:05.4]} 50. Rf1 {[%clk
0:00:06.6]} 50... Qh2+ {[%clk 0:00:05.4]} 51. Rf2 {[%clk 0:00:06.4]} 51... Qxh3
{[%clk 0:00:06.3]} 52. Qb5 {[%clk 0:00:06.7]} 52... Qg3 {[%clk 0:00:05.7]} 53.
Qe8+ {[%clk 0:00:06.6]} 53... Rc8 {[%clk 0:00:05.3]} 54. Qh5 {[%clk 0:00:05.6]}
54... Qe5 {[%clk 0:00:04.6]} 55. Qxh4 {[%clk 0:00:04.7]} 55... Nxc4 {[%clk
0:00:04.6]} 56. Rxb7+ {[%clk 0:00:04.1]} 56... Kxb7 {[%clk 0:00:05.5]} 57. Rg2
{[%clk 0:00:04.3]} 57... Qxc3 {[%clk 0:00:05.7]} 58. Qe7+ {[%clk 0:00:04.5]}
58... Rc7 {[%clk 0:00:05.6]} 59. Qg5 {[%clk 0:00:04.1]} 59... Qb2+ {[%clk
0:00:04.8]} 60. Ke1 {[%clk 0:00:03.6]} 60... Qc3+ {[%clk 0:00:04.7]} 61. Ke2
{[%clk 0:00:03.6]} 61... a5 {[%clk 0:00:05.1]} 62. Rg1 {[%clk 0:00:03.2]} 62...
Ka7 {[%clk 0:00:03.9]} 63. Rb1 {[%clk 0:00:02.6]} 63... Na3 {[%clk 0:00:04.3]}
64. Qd8 {[%clk 0:00:02.1]} 64... Qc4+ {[%clk 0:00:01.8]} 65. Kf2 {[%clk
0:00:01.8]} 65... Rb7 {[%clk 0:00:02.7]} 0-1

[Event "*** Titled Tuesday Blitz"]
[Site "Chess.com"]
[Date "2021.02.09"]
[Round "7"]
[White "hansen"]
[Black "nrvisakh"]
[Result "1/2-1/2"]
[WhiteElo "2943"]
[BlackElo "2761"]
[TimeControl "180+1"]
[EndTime "11:20:21 PST"]
[Termination "Game drawn by agreement"]

1. e4 {[%clk 0:03:00.9]} 1... c5 {[%clk 0:02:55]} 2. Nf3 {[%clk 0:03:00.7]} 2...
Nc6 {[%clk 0:02:51.8]} 3. Bb5 {[%clk 0:03:00.6]} 3... g6 {[%clk 0:02:49.1]} 4.
Bxc6 {[%clk 0:03:00.4]} 4... dxc6 {[%clk 0:02:48.2]} 5. h3 {[%clk 0:02:59.7]}
5... Bg7 {[%clk 0:02:48.1]} 6. O-O {[%clk 0:03:00.2]} 6... Nf6 {[%clk
0:02:46.5]} 7. d3 {[%clk 0:03:00.6]} 7... O-O {[%clk 0:02:46.4]} 8. Nc3 {[%clk
0:03:00.7]} 8... b6 {[%clk 0:02:44.6]} 9. Be3 {[%clk 0:02:56.8]} 9... Ne8 {[%clk
0:02:41.4]} 10. Qd2 {[%clk 0:02:55.3]} 10... e5 {[%clk 0:02:40.4]} 11. Bh6
{[%clk 0:02:55.5]} 11... f6 {[%clk 0:02:40.5]} 12. Nh2 {[%clk 0:02:53.2]} 12...
Nc7 {[%clk 0:02:37.8]} 13. Bxg7 {[%clk 0:02:51.7]} 13... Kxg7 {[%clk 0:02:38.7]}
14. Ne2 {[%clk 0:02:51.7]} 14... Ne6 {[%clk 0:02:34.7]} 15. b3 {[%clk 0:02:51]}
15... a5 {[%clk 0:02:23.8]} 16. f4 {[%clk 0:02:50.2]} 16... exf4 {[%clk
0:02:23.2]} 17. Nxf4 {[%clk 0:02:51.1]} 17... Nxf4 {[%clk 0:02:18.3]} 18. Qxf4
{[%clk 0:02:48.7]} 18... Be6 {[%clk 0:02:18]} 19. Nf3 {[%clk 0:02:45.8]} 19...
a4 {[%clk 0:02:16]} 20. Rae1 {[%clk 0:02:40.9]} 20... axb3 {[%clk 0:02:15.4]}
21. axb3 {[%clk 0:02:41.8]} 21... h6 {[%clk 0:02:13.1]} 22. Qg3 {[%clk
0:02:37.5]} 22... Kh7 {[%clk 0:02:08.2]} 23. Rf2 {[%clk 0:02:35.4]} 23... Qe7
{[%clk 0:01:54.4]} 24. Ref1 {[%clk 0:02:35.5]} 24... Rae8 {[%clk 0:01:52.9]} 25.
Nh4 {[%clk 0:02:34.2]} 25... Qg7 {[%clk 0:01:51.7]} 26. Qd6 {[%clk 0:02:33.2]}
26... f5 {[%clk 0:01:23.7]} 27. Qxc6 {[%clk 0:02:17.8]} 27... Qd4 {[%clk
0:00:46.8]} 28. Kh1 {[%clk 0:01:43.7]} 28... Qd8 {[%clk 0:00:36.9]} 29. Nxg6
{[%clk 0:01:42.1]} 29... Rf6 {[%clk 0:00:28]} 30. Ne5 {[%clk 0:01:19.9]} 30...
Bc8 {[%clk 0:00:25.2]} 31. Qa8 {[%clk 0:00:39.3]} 31... Rxe5 {[%clk 0:00:24.7]}
32. exf5 {[%clk 0:00:39.6]} 32... Re8 {[%clk 0:00:15.8]} 33. Qa7+ {[%clk
0:00:38.5]} 33... Qe7 {[%clk 0:00:14.6]} 34. Qa4 {[%clk 0:00:36.2]} 34... Ref8
{[%clk 0:00:11.7]} 35. g4 {[%clk 0:00:35.8]} 35... Bb7+ {[%clk 0:00:11.9]} 36.
Kh2 {[%clk 0:00:35.8]} 36... Qe5+ {[%clk 0:00:11.7]} 37. Qf4 {[%clk 0:00:36.4]}
37... Re8 {[%clk 0:00:11.9]} 38. Qxe5 {[%clk 0:00:30.5]} 38... Rxe5 {[%clk
0:00:12.8]} 39. Rf4 {[%clk 0:00:23]} 39... b5 {[%clk 0:00:12.6]} 40. b4 {[%clk
0:00:22.8]} 40... cxb4 {[%clk 0:00:11.5]} 41. Rxb4 {[%clk 0:00:19.6]} 41... Rc6
{[%clk 0:00:11.9]} 42. Rf2 {[%clk 0:00:19.4]} 42... Rec5 {[%clk 0:00:11.5]} 43.
Kg3 {[%clk 0:00:19.8]} 43... Kg7 {[%clk 0:00:09.4]} 44. Rd4 {[%clk 0:00:18.9]}
44... Rc7 {[%clk 0:00:09]} 45. Re2 {[%clk 0:00:18.7]} 45... Bd5 {[%clk 0:00:08]}
46. h4 {[%clk 0:00:14.8]} 46... Bf7 {[%clk 0:00:08]} 47. Rb4 {[%clk 0:00:11.8]}
47... h5 {[%clk 0:00:07.7]} 48. d4 {[%clk 0:00:05.4]} 48... Rc3+ {[%clk
0:00:07.1]} 49. Kf4 {[%clk 0:00:05.7]} 49... hxg4 {[%clk 0:00:07.6]} 50. Rxb5
{[%clk 0:00:05]} 50... R3c4 {[%clk 0:00:06.7]} 51. Rd2 {[%clk 0:00:04.6]} 51...
Rd7 {[%clk 0:00:06.7]} 52. Kxg4 {[%clk 0:00:01.6]} 52... Rdxd4+ {[%clk
0:00:06.6]} 53. Rxd4 {[%clk 0:00:01.9]} 53... Rxd4+ {[%clk 0:00:07.5]} 54. Kg5
{[%clk 0:00:02.6]} 54... Rd2 {[%clk 0:00:08.1]} 55. f6+ {[%clk 0:00:01.7]} 55...
Kh7 {[%clk 0:00:08.6]} 56. Rb7 {[%clk 0:00:01.7]} 56... Rg2+ {[%clk 0:00:08.6]}
57. Kf5 {[%clk 0:00:02.3]} 57... Kg8 {[%clk 0:00:08.9]} 58. Rb8+ {[%clk
0:00:02.5]} 58... Kh7 {[%clk 0:00:08.6]} 59. Rb7 {[%clk 0:00:03.4]} 59... Rf2+
{[%clk 0:00:08.7]} 60. Kg5 {[%clk 0:00:03.9]} 60... Kg8 {[%clk 0:00:08.4]} 61.
h5 {[%clk 0:00:04]} 61... Bxh5 {[%clk 0:00:06.6]} 62. Rg7+ {[%clk 0:00:04.1]}
62... Kf8 {[%clk 0:00:06.3]} 63. Kxh5 {[%clk 0:00:04]} 63... Rxf6 {[%clk
0:00:06.7]} 64. Rc7 {[%clk 0:00:04.5]} 64... Ke8 {[%clk 0:00:06.6]} 65. Kg5
{[%clk 0:00:05]} 65... Rf2 {[%clk 0:00:06.8]} 66. Kg4 {[%clk 0:00:05.2]} 66...
Kd8 {[%clk 0:00:06.8]} 67. Rc4 {[%clk 0:00:04.9]} 67... Kd7 {[%clk 0:00:07.2]}
68. Kg3 {[%clk 0:00:05.4]} 68... Rf8 {[%clk 0:00:06.7]} 69. Rf4 {[%clk
0:00:05.2]} 69... Rxf4 {[%clk 0:00:06.4]} 70. Kxf4 {[%clk 0:00:06.1]} 70... Kd6
{[%clk 0:00:07.3]} 71. Ke3 {[%clk 0:00:03.6]} 71... Kc5 {[%clk 0:00:07.4]} 72.
Kd3 {[%clk 0:00:04.1]} 72... Kd5 {[%clk 0:00:07.5]} 73. Kc3 {[%clk 0:00:03.5]}
73... Kc5 {[%clk 0:00:07.8]} 74. Kb2 {[%clk 0:00:02.8]} 74... Kb4 {[%clk
0:00:08]} 75. Ka2 {[%clk 0:00:03.3]} 75... Kc3 {[%clk 0:00:08]} 76. Kb1 {[%clk
0:00:04.2]} 76... Kc4 {[%clk 0:00:08.4]} 77. Kb2 {[%clk 0:00:05.1]} 77... Kb4
{[%clk 0:00:08.8]} 78. Kc1 {[%clk 0:00:02.7]} 78... Kc3 {[%clk 0:00:08.9]} 79.
Kd1 {[%clk 0:00:02.8]} 79... Kc4 {[%clk 0:00:09.3]} 80. Kd2 {[%clk 0:00:03.5]}
80... Kd4 {[%clk 0:00:09.5]} 1/2-1/2

[Event "*** Titled Tuesday Blitz"]
[Site "Chess.com"]
[Date "2021.02.09"]
[Round "8"]
[White "ElCoachRene"]
[Black "zurzan"]
[Result "1-0"]
[WhiteElo "2194"]
[BlackElo "1997"]
[TimeControl "180+1"]
[EndTime "11:22:51 PST"]
[Termination "ElCoachRene won by checkmate"]

1. d4 {[%clk 0:03:00.9]} 1... d6 {[%clk 0:02:59.5]} 2. Bf4 {[%clk 0:03:01.6]}
2... g6 {[%clk 0:02:58.3]} 3. e3 {[%clk 0:03:02]} 3... Bg7 {[%clk 0:02:58.6]} 4.
Nf3 {[%clk 0:03:02.7]} 4... Nf6 {[%clk 0:02:58.3]} 5. h3 {[%clk 0:03:02.5]} 5...
O-O {[%clk 0:02:57.8]} 6. Nbd2 {[%clk 0:03:03.1]} 6... Nbd7 {[%clk 0:02:56.7]}
7. Bc4 {[%clk 0:03:03.5]} 7... c6 {[%clk 0:02:55.6]} 8. a4 {[%clk 0:03:03]} 8...
d5 {[%clk 0:02:55.6]} 9. Bd3 {[%clk 0:03:01.8]} 9... Nh5 {[%clk 0:02:55.1]} 10.
Bg5 {[%clk 0:02:58.4]} 10... h6 {[%clk 0:02:54.5]} 11. Bh4 {[%clk 0:02:58.6]}
11... g5 {[%clk 0:02:47.8]} 12. Nxg5 {[%clk 0:02:57.7]} 12... hxg5 {[%clk
0:02:47.7]} 13. Qxh5 {[%clk 0:02:56.1]} 13... gxh4 {[%clk 0:02:47.1]} 14. Qh7#
{[%clk 0:02:55.3]} 1-0

[Event "*** Titled Tuesday Blitz"]
[Site "Chess.com"]
[Date "2021.02.09"]
[Round "8"]
[White "Willychess95"]
[Black "MrTattaglia"]
[Result "1-0"]
[WhiteElo "2638"]
[BlackElo "2783"]
[TimeControl "180+1"]
[EndTime "11:24:34 PST"]
[Termination "Willychess95 won by resignation"]

1. e4 {[%clk 0:03:00.1]} 1... c6 {[%clk 0:02:58.4]} 2. d4 {[%clk 0:02:59.7]}
2... d5 {[%clk 0:02:58.5]} 3. e5 {[%clk 0:03:00.3]} 3... c5 {[%clk 0:02:58.2]}
4. dxc5 {[%clk 0:02:59.9]} 4... Nc6 {[%clk 0:02:58.6]} 5. Bb5 {[%clk 0:02:58.9]}
5... d4 {[%clk 0:02:56.9]} 6. Bxc6+ {[%clk 0:02:48.1]} 6... bxc6 {[%clk
0:02:57.8]} 7. Nf3 {[%clk 0:02:48.4]} 7... Qa5+ {[%clk 0:02:58]} 8. Qd2 {[%clk
0:02:44.1]} 8... Qxc5 {[%clk 0:02:57.6]} 9. Qxd4 {[%clk 0:02:38.1]} 9... Qxc2
{[%clk 0:02:57]} 10. O-O {[%clk 0:02:34.9]} 10... e6 {[%clk 0:02:48]} 11. Rd1
{[%clk 0:02:21.2]} 11... Be7 {[%clk 0:02:47.7]} 12. Nc3 {[%clk 0:02:12.4]} 12...
c5 {[%clk 0:02:34.7]} 13. Qc4 {[%clk 0:02:01.7]} 13... Nh6 {[%clk 0:02:23.5]}
14. Qb5+ {[%clk 0:01:54]} 14... Kf8 {[%clk 0:02:23.8]} 15. Qc6 {[%clk
0:01:48.3]} 15... Rb8 {[%clk 0:02:23.9]} 16. Qc7 {[%clk 0:01:47.4]} 16... Ra8
{[%clk 0:02:24.3]} 17. Rd8+ {[%clk 0:01:46.4]} 1-0